bitfinex/quotes_BTCUSD_20220212
["timestamp","ask_amount","ask_price","bid_price","bid_amount"]
[1644675418939,0.28111611,42211.0,42206.0,0.0004641]
[1644675419140,0.33111611,42211.0,42206.0,0.0004641]
[1644675419439,0.33111611,42211.0,42202.0,0.20154376]
[1644675419440,0.43111611,42211.0,42202.0,0.20154376]
[1644675419740,0.43111611,42211.0,42206.0,0.0004641]
[1644675419741,0.23893189,42207.0,42206.0,0.0004641]
[1644675420342,0.36648227,42207.0,42206.0,0.0004641]
[1644675420546,0.79694327,42207.0,42206.0,0.0004641]
[1644675420745,0.89694327,42207.0,42200.0,0.00017957]
[1644675420941,0.333161,42205.0,42199.0,0.00017957]
[1644675421142,0.333161,42204.0,42198.0,0.3]
[1644675421346,0.333161,42204.0,42198.0,0.00017957]
[1644675421347,0.63192723,42203.0,42198.0,0.00017957]
[1644675421542,0.29876623,42203.0,42197.0,0.00017957]
[1644675421741,0.39876623,42203.0,42196.0,0.20172333]
[1644675422140,0.39876623,42203.0,42196.0,0.00017957]
[1644675422141,0.333161,42202.0,42196.0,0.00017957]
[1644675422343,0.333161,42202.0,42195.0,0.20254376]
[1644675422344,0.480461,42202.0,42195.0,0.001]
[1644675422593,0.2473,42202.0,42195.0,0.001]
[1644675422793,0.392443,42201.0,42195.0,0.001]
[1644675423093,0.08818243,42196.0,42195.0,0.001]
[1644675423294,0.32957872,42199.0,42196.0,0.10573254]
[1644675423494,0.0473,42198.0,42196.0,0.10573254]
[1644675423692,0.0473,42198.0,42196.0,0.10591211]
[1644675424293,0.0473,42198.0,42196.0,0.10571855]
[1644675425095,0.56603504,42201.0,42198.0,0.00091851]
[1644675425295,0.0473,42199.0,42198.0,0.00091851]
[1644675426745,0.480461,42199.0,42198.0,0.00091851]
[1644675426939,0.580461,42199.0,42198.0,0.00091851]
[1644675427141,0.2473,42199.0,42198.0,0.00091851]
[1644675427340,0.580461,42199.0,42198.0,0.00091851]
[1644675427543,0.2473,42199.0,42198.0,0.00091851]
[1644675427742,0.580461,42199.0,42198.0,0.00091851]
[1644675428042,0.86863272,42199.0,42198.0,0.00091851]
[1644675428442,0.53547172,42199.0,42198.0,0.00091851]
[1644675428641,0.86863272,42199.0,42198.0,0.00091851]
[1644675429642,0.53547172,42199.0,42198.0,0.00091851]
[1644675429842,0.53547172,42199.0,42197.0,0.00100623]
[1644675430088,0.61309302,42198.0,42197.0,0.00082666]
[1644675430288,0.61309302,42198.0,42197.0,0.00100623]
[1644675430289,0.76039302,42198.0,42197.0,0.00100623]
[1644675430490,0.42723202,42198.0,42197.0,0.00100623]
[1644675430888,0.76039302,42198.0,42197.0,0.00100623]
[1644675431088,0.42723202,42198.0,42197.0,0.00100623]
[1644675431291,0.480461,42198.0,42197.0,0.00100623]
[1644675432090,0.1473,42198.0,42197.0,0.00100623]
[1644675432290,0.380461,42198.0,42197.0,0.00100623]
[1644675432690,0.72055689,42198.0,42197.0,0.00100623]
[1644675432892,0.38739589,42198.0,42197.0,0.00100623]
[1644675433092,0.1473,42198.0,42197.0,0.00100623]
[1644675433759,0.0473,42198.0,42197.0,0.00100623]
[1644675434460,0.380461,42198.0,42197.0,0.00100623]
[1644675434961,0.480461,42198.0,42197.0,0.00100623]
[1644675435861,0.1473,42198.0,42197.0,0.00100623]
[1644675436060,0.480461,42198.0,42197.0,0.00100623]
[1644675436661,0.1473,42198.0,42197.0,0.00100623]
[1644675437060,0.480461,42198.0,42197.0,0.00100623]
[1644675437260,0.1473,42198.0,42197.0,0.00100623]
[1644675437700,0.0473,42198.0,42197.0,0.00100623]
[1644675438702,0.1,42199.0,42197.0,0.00100623]
[1644675438907,0.38600342,42201.0,42197.0,0.00100623]
[1644675438908,0.24,42201.0,42197.0,0.26976961]
[1644675439506,0.24,42201.0,42198.0,0.07607583]
[1644675439703,0.24,42201.0,42198.0,0.0762554]
[1644675441003,0.24,42201.0,42198.0,0.00017957]
[1644675441246,0.24,42201.0,42197.0,0.00128773]
[1644675441247,0.24,42201.0,42197.0,0.00100623]
[1644675441440,0.24,42201.0,42197.0,0.0014673]
[1644675442240,0.24,42201.0,42198.0,0.0819781]
[1644675442453,0.24,42201.0,42198.0,0.08215767]
[1644675442740,0.24,42201.0,42198.0,0.00017957]
[1644675442940,0.24,42201.0,42197.0,0.00146731]
[1644675443542,0.24,42201.0,42197.0,0.00100623]
[1644675443742,0.24,42201.0,42197.0,0.00146731]
[1644675444552,0.24,42201.0,42197.0,0.27970013]
[1644675444746,0.24,42201.0,42197.0,0.27923905]
[1644675444987,0.24,42201.0,42199.0,0.00091755]
[1644675445890,0.24,42201.0,42199.0,0.00109712]
[1644675446090,0.3769,42215.0,42201.0,0.2644456]
[1644675446091,0.4899,42215.0,42201.0,0.2644456]
[1644675446290,0.4899,42215.0,42202.0,0.33205765]
[1644675446491,0.3951,42217.0,42202.0,0.33205765]
[1644675446492,0.3951,42217.0,42203.0,0.0473]
[1644675447095,0.25720374,42216.0,42209.0,0.0781694]
[1644675447390,0.25720374,42216.0,42208.0,0.00044561]
[1644675447594,0.53958032,42216.0,42208.0,0.00044561]
[1644675448193,0.63958032,42216.0,42208.0,0.00044561]
[1644675448391,0.63958032,42216.0,42203.0,0.0473]
[1644675448392,0.63958032,42216.0,42203.0,0.07387888]
[1644675448591,0.06984524,42214.0,42210.0,0.0004456]
[1644675448842,0.73958032,42216.0,42210.0,0.0004456]
[1644675449043,0.25720374,42216.0,42210.0,0.0004456]
[1644675449742,0.577256,42217.0,42211.0,0.00046101]
[1644675450140,0.059252,42220.0,42211.0,0.00046101]
[1644675450341,0.27778716,42219.0,42211.0,0.00046101]
[1644675450741,0.32778716,42219.0,42211.0,0.00046101]
[1644675450943,0.37778716,42219.0,42213.0,0.000461]
[1644675451142,0.25881764,42216.0,42213.0,0.000461]
[1644675451343,0.47778716,42219.0,42213.0,0.000461]
[1644675451540,0.59398716,42219.0,42213.0,0.000461]
[1644675451942,0.59398716,42219.0,42205.0,0.00102576]
[1644675452141,0.07137721,42218.0,42214.0,0.000461]
[1644675452345,0.059252,42220.0,42214.0,0.000461]
[1644675452605,0.1161,42223.0,42214.0,0.000461]
[1644675453304,0.1161,42223.0,42209.0,0.29763717]
[1644675453503,0.1161,42223.0,42216.0,0.00019398]
[1644675453703,0.2161,42223.0,42216.0,0.00195107]
[1644675454505,0.1161,42223.0,42216.0,0.00175709]
[1644675454707,0.3618,42225.0,42220.0,0.07804309]
[1644675454915,0.3622,42229.0,42220.0,0.07980018]
[1644675455306,0.24,42223.0,42220.0,0.07980018]
[1644675455506,0.3622,42229.0,42223.0,0.29775846]
[1644675455806,0.37431916,42230.0,42223.0,0.29951555]
[1644675456006,0.46664327,42231.0,42223.0,0.29951555]
[1644675456250,0.1,42230.0,42223.0,0.29951555]
[1644675456445,0.1,42230.0,42223.0,0.29951553]
[1644675456446,0.333161,42229.0,42223.0,0.29951553]
[1644675456647,0.25051916,42229.0,42223.0,0.29951553]
[1644675456845,0.15,42229.0,42223.0,0.29951553]
[1644675457045,0.15,42229.0,42224.0,0.00046146]
[1644675457345,0.40051916,42229.0,42224.0,0.00221851]
[1644675457747,0.20044275,42227.0,42224.0,0.00221851]
[1644675458148,0.20044275,42227.0,42224.0,0.00175705]
[1644675458547,0.20090414,42230.0,42224.0,0.00175705]
[1644675458747,0.00046139,42230.0,42224.0,0.00175705]
[1644675459349,0.20044275,42231.0,42224.0,0.00175705]
[1644675459548,0.0004614,42230.0,42224.0,0.00221852]
[1644675460011,0.0004614,42230.0,42225.0,0.0008926]
[1644675460215,0.0004614,42230.0,42225.0,0.00264965]
[1644675460411,0.25961289,42231.0,42225.0,0.00264965]
[1644675460911,0.00046141,42230.0,42225.0,0.00264965]
[1644675461712,0.35044275,42233.0,42225.0,0.00264965]
[1644675461913,0.00046141,42230.0,42225.0,0.00264965]
[1644675462817,0.40044275,42234.0,42225.0,0.00264965]
[1644675463012,0.00046141,42230.0,42225.0,0.00264965]
[1644675464043,0.2,42234.0,42225.0,0.00264965]
[1644675464245,0.1,42234.0,42225.0,0.00264965]
[1644675464442,0.25017321,42230.0,42225.0,0.00264965]
[1644675465243,0.2497118,42230.0,42227.0,0.00100941]
[1644675465447,0.24998029,42230.0,42227.0,0.00276646]
[1644675466045,0.48998029,42230.0,42227.0,0.00276646]
[1644675466246,0.58998029,42230.0,42227.0,0.00088686]
[1644675466446,0.6897118,42230.0,42227.0,0.00146755]
[1644675466945,0.06352154,42229.0,42227.0,0.00146755]
[1644675468797,0.4897118,42230.0,42227.0,0.00146755]
[1644675469196,0.49017369,42230.0,42227.0,0.00146755]
[1644675469796,0.24046189,42230.0,42227.0,0.00146755]
[1644675470001,0.24,42230.0,42227.0,0.00146755]
[1644675472045,0.29,42230.0,42227.0,0.00146755]
[1644675472244,0.34,42230.0,42227.0,0.00146755]
[1644675472444,0.28573512,42229.0,42227.0,0.00146755]
[1644675473246,0.08538238,42228.0,42227.0,0.00146755]
[1644675473643,0.18538238,42228.0,42227.0,0.00146755]
[1644675473844,0.46049719,42228.0,42227.0,0.00146755]
[1644675474244,0.56049719,42228.0,42227.0,0.00146755]
[1644675475096,0.28538238,42228.0,42227.0,0.00146755]
[1644675475299,0.13538238,42228.0,42227.0,0.00146755]
[1644675479645,0.05,42228.0,42227.0,0.00146755]
[1644675479845,0.34,42230.0,42227.0,0.00146755]
[1644675480044,0.44046189,42230.0,42227.0,0.00146755]
[1644675480846,0.44,42230.0,42227.0,0.00146755]
[1644675482046,0.08286932,42229.0,42227.0,0.00146755]
[1644675482499,0.24,42230.0,42227.0,0.00146755]
[1644675485098,0.23596872,42230.0,42227.0,0.00146755]
[1644675485500,0.75,42229.0,42223.0,0.29775846]
[1644675485699,0.0641285,42227.0,42223.0,0.29775846]
[1644675485897,0.23596872,42230.0,42223.0,0.29775846]
[1644675490001,0.23596872,42230.0,42225.0,0.00099647]
[1644675490400,0.43641147,42230.0,42225.0,0.00099647]
[1644675490802,0.23596872,42230.0,42225.0,0.00099647]
[1644675491605,0.23596872,42230.0,42223.0,0.29375493]
[1644675492404,0.23669965,42229.0,42223.0,0.29375493]
[1644675492805,0.4371424,42229.0,42223.0,0.29375493]
[1644675493006,0.23669965,42229.0,42223.0,0.29375493]
[1644675496345,0.4371424,42229.0,42223.0,0.29375493]
[1644675497346,0.23669965,42229.0,42223.0,0.29375493]
[1644675497596,0.20044275,42229.0,42223.0,0.29375493]
[1644675498596,0.39816224,42229.0,42223.0,0.29375493]
[1644675499198,0.20044275,42228.0,42223.0,0.29375493]
[1644675499504,0.23596872,42230.0,42223.0,0.49510359]
[1644675499901,0.23596872,42230.0,42223.0,0.29375493]
[1644675501448,0.08,42229.0,42223.0,0.29375493]
[1644675506397,0.08,42229.0,42224.0,0.26982709]
[1644675506597,0.08,42229.0,42223.0,0.29375493]
[1644675506800,0.08,42229.0,42224.0,0.20134866]
[1644675507098,0.08,42229.0,42224.0,0.47387597]
[1644675507302,0.08,42229.0,42223.0,0.49510359]
[1644675507701,0.08,42229.0,42223.0,0.29375493]
[1644675508754,0.08,42229.0,42223.0,0.49510359]
[1644675509144,0.08,42229.0,42224.0,0.28758992]
[1644675509744,0.08,42229.0,42224.0,0.48893858]
[1644675510746,0.08,42229.0,42224.0,0.28805187]
[1644675511749,0.08,42229.0,42224.0,0.28758992]
[1644675511947,0.08,42229.0,42224.0,0.28805187]
[1644675512994,0.08,42229.0,42224.0,0.28758992]
[1644675513193,0.08,42229.0,42224.0,0.28805187]
[1644675514194,0.08,42229.0,42224.0,0.28758992]
[1644675514395,0.08,42229.0,42224.0,0.28805187]
[1644675514794,0.07992613,42229.0,42224.0,0.28805187]
[1644675515394,0.07992613,42229.0,42224.0,0.28758992]
[1644675515594,0.07992613,42227.0,42224.0,0.29642278]
[1644675515994,0.07992613,42227.0,42224.0,0.37428132]
[1644675516645,0.07992613,42227.0,42224.0,0.57516803]
[1644675517245,0.07992613,42227.0,42224.0,0.37381937]
[1644675517446,0.07992613,42227.0,42224.0,0.57516803]
[1644675517850,0.07992613,42227.0,42224.0,0.37381937]
[1644675519346,0.07992613,42227.0,42224.0,0.29596083]
[1644675519997,0.07992613,42227.0,42223.0,0.29421688]
[1644675520197,0.07992613,42227.0,42223.0,0.29375493]
[1644675520401,0.07992613,42227.0,42223.0,0.29421688]
[1644675520596,0.2364306,42230.0,42223.0,0.29421688]
[1644675520597,0.07992613,42226.0,42223.0,0.29421688]
[1644675521200,0.07992613,42226.0,42224.0,0.27451868]
[1644675524443,0.07992613,42226.0,42224.0,0.47586734]
[1644675524645,0.07992613,42226.0,42225.0,0.27848237]
[1644675525447,0.07992613,42226.0,42225.0,0.47983103]
[1644675526956,0.2364306,42230.0,42225.0,0.72746819]
[1644675527149,0.2364306,42230.0,42229.0,0.2014794]
[1644675527348,0.2364306,42230.0,42229.0,0.4804717]
[1644675527349,0.23596872,42230.0,42229.0,0.4804717]
[1644675527595,0.23643061,42230.0,42229.0,0.4804717]
[1644675527800,0.23643061,42230.0,42229.0,0.5804717]
[1644675527998,0.23643061,42230.0,42229.0,0.4804717]
[1644675528198,0.23643061,42230.0,42229.0,0.3804717]
[1644675528598,0.23596872,42230.0,42229.0,0.3804717]
[1644675528799,0.23596872,42230.0,42229.0,0.5819252]
[1644675529696,0.23596872,42230.0,42229.0,0.2487535]
[1644675530099,0.23596872,42230.0,42229.0,0.1473]
[1644675530900,0.23596872,42230.0,42229.0,0.41305923]
[1644675531257,0.23596872,42230.0,42229.0,0.41305936]
[1644675531449,0.23596872,42230.0,42229.0,0.44873686]
[1644675532646,0.23596872,42230.0,42229.0,0.53835125]
[1644675533548,0.23596872,42230.0,42229.0,0.33691439]
[1644675533947,0.23596872,42230.0,42229.0,0.33724997]
[1644675535203,0.23596872,42230.0,42229.0,0.28724997]
[1644675535403,0.23596872,42230.0,42229.0,0.38724997]
[1644675535603,0.23596872,42230.0,42229.0,0.63336828]
[1644675535806,0.23596872,42230.0,42229.0,0.83512089]
[1644675536404,0.23596872,42230.0,42229.0,0.58336828]
[1644675536802,0.23596872,42230.0,42229.0,0.83512728]
[1644675537201,0.23596872,42230.0,42229.0,1.02325812]
[1644675537402,0.23596872,42230.0,42229.0,0.87860144]
[1644675537603,0.23596872,42230.0,42229.0,0.82061397]
[1644675537803,0.23596872,42230.0,42229.0,0.33724997]
[1644675538205,0.23596872,42230.0,42229.0,0.23724997]
[1644675538406,0.23596872,42230.0,42229.0,0.33724997]
[1644675539353,0.23596872,42230.0,42229.0,0.23724997]
[1644675539546,0.23596872,42230.0,42229.0,0.33724997]
[1644675539745,0.23596872,42230.0,42229.0,0.52538081]
[1644675539946,0.23596872,42230.0,42229.0,0.57293983]
[1644675540146,0.23596872,42230.0,42229.0,0.76107067]
[1644675540547,0.23596872,42230.0,42229.0,0.57293983]
[1644675540747,0.23596872,42230.0,42229.0,0.52538081]
[1644675540951,0.23596872,42230.0,42229.0,0.33724997]
[1644675541348,0.23596872,42230.0,42229.0,0.23724997]
[1644675541547,0.23596872,42230.0,42229.0,0.33724997]
[1644675541749,0.23596872,42230.0,42229.0,0.37460746]
[1644675542497,0.23596872,42230.0,42229.0,0.33724997]
[1644675542698,0.23596872,42230.0,42229.0,0.23724997]
[1644675542898,0.23596872,42230.0,42229.0,0.33724997]
[1644675543097,0.23596872,42230.0,42229.0,0.38724997]
[1644675543298,0.23596872,42230.0,42229.0,0.33724997]
[1644675543900,0.23596872,42230.0,42229.0,0.28724997]
[1644675544102,0.23596872,42230.0,42229.0,0.53157067]
[1644675544300,0.23596872,42230.0,42229.0,0.63157067]
[1644675544700,0.23596872,42230.0,42229.0,0.81970151]
[1644675544904,0.23596872,42230.0,42229.0,0.88332967]
[1644675545202,0.23596872,42230.0,42229.0,0.81970151]
[1644675545602,0.17482353,42230.0,42229.0,0.81970151]
[1644675545802,0.04577578,42230.0,42229.0,1.22680851]
[1644675546007,0.0004646,42232.0,42229.0,1.03867767]
[1644675546277,0.0004646,42232.0,42231.0,0.84387655]
[1644675546466,0.0004646,42232.0,42231.0,1.18078912]
[1644675546668,0.00026309,42238.0,42232.0,0.2]
[1644675546867,0.00526326,42239.0,42236.0,0.26053023]
[1644675547067,0.00026309,42238.0,42237.0,0.526506]
[1644675547267,0.00526326,42239.0,42238.0,0.05]
[1644675547468,0.00526326,42239.0,42238.0,0.60328708]
[1644675547666,0.00526326,42239.0,42238.0,0.84328708]
[1644675547865,0.00526326,42239.0,42238.0,0.94328708]
[1644675548069,0.00526326,42239.0,42238.0,0.75515624]
[1644675548465,0.00526326,42239.0,42238.0,0.94324762]
[1644675548671,0.00526326,42239.0,42238.0,0.75515624]
[1644675549668,0.00526326,42239.0,42238.0,0.94324187]
[1644675549868,0.00526326,42239.0,42238.0,0.75515624]
[1644675550096,0.00526326,42239.0,42238.0,0.94324187]
[1644675550303,0.00526326,42239.0,42238.0,1.14453139]
[1644675551300,0.00526326,42239.0,42238.0,0.94324187]
[1644675551698,0.0050483,42239.0,42238.0,0.94324187]
[1644675552698,0.0050483,42239.0,42238.0,1.04932998]
[1644675553500,0.0050483,42239.0,42238.0,0.94324187]
[1644675555552,0.0050483,42239.0,42238.0,0.99324187]
[1644675555749,0.0050483,42239.0,42238.0,0.75515624]
[1644675555950,0.2300483,42239.0,42238.0,0.75515624]
[1644675556657,0.2300483,42239.0,42238.0,0.99324057]
[1644675556658,0.18466742,42239.0,42238.0,0.99324057]
[1644675556853,0.02038088,42239.0,42238.0,0.99324057]
[1644675557051,0.00438088,42239.0,42238.0,0.99324057]
[1644675557251,1.87e-05,42241.0,42240.0,0.35]
[1644675557500,0.00200324,42242.0,42241.0,0.7]
[1644675557700,0.00200324,42242.0,42241.0,1.14961519]
[1644675557900,0.00200324,42242.0,42241.0,1.43769952]
[1644675559705,0.00200324,42242.0,42241.0,1.24961519]
[1644675560405,0.00200324,42242.0,42241.0,0.49961519]
[1644675562052,0.00200324,42242.0,42241.0,0.00033552]
[1644675565522,0.00200324,42242.0,42241.0,0.00133154]
[1644675566321,0.19232516,42242.0,42241.0,0.00133154]
[1644675566925,0.42232516,42242.0,42241.0,0.00133154]
[1644675568223,0.19232516,42242.0,42241.0,0.00133154]
[1644675569160,0.24232516,42242.0,42241.0,0.00133154]
[1644675569559,0.24232516,42242.0,42230.0,0.3]
[1644675569560,0.75,42241.0,42231.0,0.00040536]
[1644675569758,0.8,42241.0,42231.0,0.00074087]
[1644675570360,0.95,42241.0,42231.0,0.00074087]
[1644675570561,0.73780911,42240.0,42231.0,0.00033551]
[1644675570760,0.059226,42238.0,42231.0,0.00033551]
[1644675571059,0.059226,42238.0,42231.0,0.00074158]
[1644675571659,0.0805837,42234.0,42231.0,0.00074158]
[1644675571858,0.20987376,42232.0,42231.0,0.00074158]
[1644675572258,0.20987376,42232.0,42231.0,0.00113622]
[1644675572501,0.20987376,42232.0,42231.0,0.00073015]
[1644675572803,0.35,42231.0,42222.0,0.47478338]
[1644675573003,0.35,42231.0,42222.0,0.20123272]
[1644675573811,0.25359881,42226.0,42222.0,0.20123272]
[1644675574008,0.25359881,42226.0,42218.0,0.49012673]
[1644675574009,0.25359881,42226.0,42221.0,0.20123272]
[1644675574302,0.25359881,42226.0,42219.0,0.20123272]
[1644675574711,0.21334582,42222.0,42221.0,0.00042837]
[1644675575503,0.25359881,42226.0,42221.0,0.00042837]
[1644675575703,0.20695512,42225.0,42218.0,0.20123272]
[1644675575904,0.42430269,42225.0,42219.0,0.00042838]
[1644675576102,0.20695512,42225.0,42219.0,0.00042838]
[1644675576951,0.20695512,42225.0,42218.0,0.20123272]
[1644675577151,0.20695512,42225.0,42220.0,0.00042838]
[1644675578054,0.20695512,42225.0,42218.0,0.20123272]
[1644675578253,0.22399125,42220.0,42216.0,0.20123272]
[1644675578456,0.20695512,42225.0,42215.0,0.18811948]
[1644675578457,0.20695512,42225.0,42215.0,0.3893522]
[1644675578652,0.20695512,42225.0,42215.0,0.20123272]
[1644675579454,0.20695512,42225.0,42218.0,0.00042807]
[1644675579455,0.38516626,42225.0,42218.0,0.00042807]
[1644675580414,0.38516626,42225.0,42215.0,0.20123272]
[1644675580614,0.38516626,42225.0,42219.0,0.00039311]
[1644675581713,0.38516626,42225.0,42215.0,0.20123272]
[1644675581914,0.38516626,42225.0,42220.0,0.00039323]
[1644675582914,0.38516626,42225.0,42214.0,0.20123272]
[1644675583117,0.38516626,42225.0,42220.0,0.00039323]
[1644675584150,0.38516626,42225.0,42214.0,0.20123272]
[1644675584349,0.38516626,42225.0,42220.0,0.00039323]
[1644675585251,0.38516626,42225.0,42210.0,0.60432324]
[1644675585252,0.25031588,42224.0,42210.0,0.60432324]
[1644675585650,0.25031588,42224.0,42220.0,0.00039788]
[1644675586449,0.49171126,42225.0,42220.0,0.00039788]
[1644675586650,0.43246626,42225.0,42213.0,0.07594108]
[1644675586854,0.43246626,42225.0,42220.0,0.00039789]
[1644675587522,0.05,42223.0,42220.0,0.00039789]
[1644675587828,0.26632242,42217.0,42211.0,0.28050432]
[1644675588021,0.26632242,42217.0,42209.0,0.00018099]
[1644675588221,0.26632242,42217.0,42209.0,0.47445158]
[1644675588421,0.26632242,42217.0,42210.0,0.06346766]
[1644675589122,0.26632242,42217.0,42211.0,0.00039718]
[1644675589524,0.08318582,42221.0,42211.0,0.00039718]
[1644675589925,0.37889845,42224.0,42211.0,0.00039718]
[1644675590123,0.1173,42224.0,42210.0,0.3403248]
[1644675590328,0.1173,42224.0,42215.0,0.00039716]
[1644675591354,0.1173,42224.0,42210.0,0.4403248]
[1644675591554,0.1173,42224.0,42217.0,0.00039715]
[1644675592653,0.1173,42224.0,42210.0,0.64155752]
[1644675592858,0.1173,42224.0,42218.0,0.00039727]
[1644675593256,0.3694,42231.0,42218.0,0.00039727]
[1644675593854,0.3694,42231.0,42217.0,0.24853272]
[1644675594060,0.3694,42231.0,42222.0,0.00039726]
[1644675594255,0.3694,42231.0,42223.0,0.06498981]
[1644675595103,0.3694,42231.0,42225.0,0.00039725]
[1644675595904,0.33886615,42234.0,42225.0,0.00039725]
[1644675596104,0.33886615,42234.0,42224.0,0.33308715]
[1644675596302,0.33886615,42234.0,42227.0,0.00039722]
[1644675596503,0.1228,42234.0,42227.0,0.00039722]
[1644675597406,0.1228,42234.0,42225.0,0.0473]
[1644675597604,0.1228,42234.0,42228.0,0.00039721]
[1644675597807,0.1228,42234.0,42229.0,0.0473]
[1644675598012,0.59669713,42237.0,42229.0,0.05340439]
[1644675598208,0.59669713,42237.0,42230.0,0.27438616]
[1644675598209,0.00039713,42237.0,42230.0,0.27438616]
[1644675598407,0.00039713,42237.0,42231.0,0.0473]
[1644675598606,0.00026347,42239.0,42231.0,0.0473]
[1644675598856,0.00039715,42237.0,42231.0,0.0473]
[1644675599055,0.00039715,42237.0,42231.0,0.0973]
[1644675599455,0.00039715,42237.0,42231.0,0.37190563]
[1644675599855,0.00026347,42240.0,42231.0,0.47190563]
[1644675600055,0.00039715,42237.0,42231.0,0.1973]
[1644675600256,0.2161507,42236.0,42231.0,0.0473]
[1644675600456,0.2161507,42236.0,42229.0,0.00039723]
[1644675601056,0.2161507,42236.0,42225.0,0.0473]
[1644675601257,0.24703374,42233.0,42229.0,0.00039722]
[1644675601457,0.2161507,42236.0,42229.0,0.00039722]
[1644675602257,0.2161507,42236.0,42226.0,0.28475503]
[1644675602500,0.41190929,42236.0,42229.0,0.00039722]
[1644675603403,0.41190929,42236.0,42226.0,0.28475503]
[1644675603600,0.41190929,42236.0,42229.0,0.00039722]
[1644675604000,0.41181442,42236.0,42229.0,0.00039722]
[1644675604499,0.41181442,42236.0,42226.0,0.28475503]
[1644675604703,0.41181442,42236.0,42229.0,0.00039722]
[1644675604704,0.19575859,42236.0,42229.0,0.00039722]
[1644675604900,0.11630324,42242.0,42229.0,0.00039722]
[1644675604901,0.00039714,42237.0,42229.0,0.00039722]
[1644675605705,0.10526747,42242.0,42227.0,0.20123272]
[1644675605905,0.52606781,42242.0,42228.0,0.0473]
[1644675606102,0.00039715,42237.0,42229.0,0.34535648]
[1644675606358,0.00039715,42237.0,42230.0,0.0473]
[1644675606957,0.10526747,42242.0,42230.0,0.24853272]
[1644675607157,0.00039772,42239.0,42231.0,0.0003978]
[1644675607357,0.00039772,42239.0,42232.0,0.0473]
[1644675607559,0.00039772,42239.0,42233.0,0.29729567]
[1644675607757,0.00039772,42239.0,42233.0,0.34459567]
[1644675608159,0.10526747,42242.0,42233.0,0.44459567]
[1644675608359,0.10526747,42242.0,42233.0,0.44499347]
[1644675608561,0.00039774,42239.0,42233.0,0.44499347]
[1644675609360,0.10526747,42242.0,42233.0,0.44459567]
[1644675609559,0.00039774,42239.0,42233.0,0.44499347]
[1644675610605,0.10526747,42242.0,42233.0,0.44459567]
[1644675610806,0.00039702,42239.0,42233.0,0.44499275]
[1644675611806,0.10526747,42242.0,42233.0,0.44459567]
[1644675612006,0.10526747,42242.0,42233.0,0.44476208]
[1644675612408,0.10526747,42242.0,42234.0,0.25352036]
[1644675612608,0.3682,42243.0,42234.0,0.0473]
[1644675614356,0.00045517,42241.0,42234.0,0.0473]
[1644675615455,0.3682,42243.0,42234.0,0.0473]
[1644675615657,0.00045517,42240.0,42234.0,0.0473]
[1644675616557,0.3682,42243.0,42235.0,0.28435314]
[1644675616755,0.00045517,42239.0,42235.0,0.38427891]
[1644675617156,0.00045517,42239.0,42235.0,0.48427891]
[1644675617808,0.0031,42244.0,42235.0,0.48427891]
[1644675618008,0.00039075,42239.0,42235.0,0.48427891]
[1644675618611,0.00026804,42239.0,42235.0,0.48427891]
[1644675618812,0.00026804,42239.0,42236.0,0.0473]
[1644675619115,0.0031,42244.0,42236.0,0.0473]
[1644675620614,0.0031,42244.0,42237.0,0.21985497]
[1644675620816,0.00336343,42244.0,42238.0,0.28757292]
[1644675621018,0.00336343,42244.0,42240.0,0.08134101]
[1644675621268,0.00336343,42244.0,42238.0,0.38757292]
[1644675621671,0.00382994,42244.0,42238.0,0.38757292]
[1644675622070,0.00382994,42244.0,42239.0,0.05]
[1644675622668,0.00336343,42244.0,42239.0,0.05]
[1644675622867,0.00382994,42244.0,42239.0,0.05]
[1644675623869,0.00336343,42244.0,42239.0,0.05]
[1644675624069,0.00382994,42244.0,42239.0,0.05]
[1644675624671,0.00382994,42244.0,42237.0,0.0473]
[1644675625107,0.00336343,42244.0,42237.0,0.0473]
[1644675625306,0.00027007,42243.0,42237.0,0.0473]
[1644675625508,0.0005335,42243.0,42234.0,0.27269274]
[1644675625807,0.26522566,42240.0,42234.0,0.27269274]
[1644675626305,0.07387393,42239.0,42234.0,0.27269274]
[1644675626507,0.07413736,42239.0,42233.0,0.42276017]
[1644675626706,0.07413736,42239.0,42233.0,0.00046665]
[1644675626910,0.07413736,42239.0,42233.0,0.10046665]
[1644675627111,0.07413736,42239.0,42233.0,0.00046665]
[1644675627311,0.26317005,42234.0,42233.0,0.00046665]
[1644675627510,0.59633105,42234.0,42233.0,0.00046664]
[1644675627708,0.26317005,42234.0,42233.0,0.00046664]
[1644675628513,0.26317005,42234.0,42223.0,0.20117817]
[1644675628763,0.26317005,42234.0,42231.0,0.00046664]
[1644675629160,0.23088509,42233.0,42231.0,0.00046664]
[1644675629359,0.29442296,42232.0,42231.0,0.00046664]
[1644675629760,0.29442296,42232.0,42222.0,0.20135916]
[1644675629964,0.29442296,42232.0,42229.0,0.00046665]
[1644675631062,0.29442296,42232.0,42222.0,0.00018099]
[1644675631263,0.29442296,42232.0,42228.0,0.00046665]
[1644675632263,0.29442296,42232.0,42223.0,0.00018099]
[1644675632505,0.29442296,42232.0,42228.0,0.00046666]
[1644675633510,0.29442296,42232.0,42223.0,0.00018099]
[1644675633711,0.29442296,42232.0,42228.0,0.00046666]
[1644675634613,0.29442296,42232.0,42223.0,0.00018099]
[1644675634811,0.29442296,42232.0,42221.0,0.75667279]
[1644675634812,0.29442296,42232.0,42228.0,0.00046666]
[1644675635913,0.00056881,42227.0,42223.0,0.00018099]
[1644675636113,0.00056881,42227.0,42222.0,0.00018099]
[1644675636355,0.00056881,42227.0,42217.0,0.30200725]
[1644675636356,0.00056881,42227.0,42221.0,0.00018099]
[1644675636554,0.00056881,42227.0,42219.0,0.25167279]
[1644675636755,0.08244295,42224.0,42219.0,0.25167279]
[1644675636955,0.08244295,42224.0,42219.0,0.25185378]
[1644675637156,0.00056881,42227.0,42219.0,0.25167279]
[1644675637354,0.00056881,42227.0,42220.0,0.25167279]
[1644675638156,0.2150343,42225.0,42219.0,0.25185378]
[1644675638358,0.29660925,42225.0,42221.0,0.00046669]
[1644675638957,0.29660925,42225.0,42221.0,0.00064768]
[1644675639157,0.29660925,42225.0,42221.0,0.00046669]
[1644675639357,0.29660925,42225.0,42220.0,0.00018099]
[1644675639560,0.2150343,42225.0,42221.0,0.00046669]
[1644675640705,0.2150343,42225.0,42218.0,0.25167279]
[1644675641005,0.2150343,42225.0,42221.0,0.00019629]
[1644675641006,0.08536829,42223.0,42221.0,0.00019629]
[1644675641308,0.54236917,42222.0,42221.0,0.00019629]
[1644675641904,0.54236917,42222.0,42214.0,0.18831419]
[1644675642104,0.22478158,42215.0,42213.0,0.25185378]
[1644675642306,0.15264929,42215.0,42213.0,0.25167279]
[1644675642506,0.15264929,42215.0,42212.0,0.25167279]
[1644675643505,0.54236917,42222.0,42212.0,0.25185378]